fUSD/lending_fUSD_20250123
["ID","MTS","AMOUNT","RATE_DAILY","PERIOD"]
[350143235,1737651038158,-500.0,0.00016438,2]
[350143237,1737651038168,-1193.03,0.00016438,2]
[350143239,1737651038177,-545.14,0.00016438,2]
[350143241,1737651038187,-500.0,0.00016438,2]
[350143243,1737651038197,-500.0,0.00016438,2]
[350143245,1737651038207,-500.0,0.00016438,2]
[350143247,1737651038216,-500.0,0.00016438,2]
[350143249,1737651038226,-500.0,0.00016438,2]
[350143251,1737651038236,-500.0,0.00016438,2]
[350143253,1737651038245,-542.02692429,0.00016438,2]
[350143255,1737651038255,-500.0,0.00016438,2]
[350143256,1737651038265,-819.15,0.00016438,2]
[350143257,1737651038275,-1127.56,0.00016438,2]
[350143258,1737651038284,-500.0,0.00016438,2]
[350143259,1737651038294,-500.0,0.00016438,2]
[350143260,1737651038303,-198.45762138,0.00016438,2]
[350143261,1737651038313,-500.0,0.00016438,2]
[350143262,1737651038323,-500.0,0.00016438,2]
[350143263,1737651038332,-500.0,0.00016438,2]
[350143265,1737651038342,-500.0,0.00016438,2]
[350143267,1737651038351,-500.0,0.00016438,2]
[350143269,1737651038361,-500.0,0.00016438,2]
[350143271,1737651038371,-561.72,0.00016438,2]
[350143273,1737651038380,-500.0,0.00016438,2]
[350143275,1737651038390,-500.0,0.00016438,2]
[350143277,1737651038400,-500.0,0.00016438,2]
[350143279,1737651038409,-500.0,0.00016438,2]
[350143281,1737651038419,-555.91,0.00016438,2]
[350143283,1737651038429,-500.0,0.00016438,2]
[350143285,1737651038439,-500.0,0.00016438,2]
[350143287,1737651038449,-3891.3938,0.00016512,2]
[350143289,1737651038459,-3961.3799,0.00016512,2]
[350143291,1737651038469,-12868.2015,0.00016512,2]
[350143293,1737651038479,-519.3239833,0.00016527,2]
[350143295,1737651038489,-200.0,0.0001653,2]
[350143297,1737651038498,-200.0,0.00016535,2]
[350143299,1737651038509,-200.0,0.00016536,2]
[350143302,1737651038522,-200.0,0.0001654,2]
[350143304,1737651038532,-1600.53327841,0.00016543,2]
[350143306,1737651038543,-32188.64777751,0.00016547,2]
[350143308,1737651038553,-1600.53327841,0.00016555,2]
[350143310,1737651038563,-192.74,0.00016559,2]
[350143312,1737651038572,-32188.64777751,0.00016567,2]
[350143314,1737651038582,-519.3239833,0.0001657,2]
[350143316,1737651038591,-200.0,0.00016571,2]
[350143318,1737651038600,-5437.44183251,0.00016571,2]
[350143373,1737651039039,-26751.205945,0.00016571,2]
[350143375,1737651039049,-200.0,0.00016576,2]
[350143377,1737651039059,-1600.53327841,0.00016581,2]
[350143379,1737651039070,-519.3239833,0.00016585,2]
[350143381,1737651039080,-519.3239833,0.00016608,2]
[350143383,1737651039089,-569.87737023,0.00016612,2]
[350143385,1737651039099,-500.0,0.00016612,2]
[350143387,1737651039109,-6276.8223,0.00016612,2]
[350143389,1737651039119,-433.3565,0.00016612,2]
[350143391,1737651039129,-32188.64777751,0.00016613,2]
[350143393,1737651039139,-30155.72574115,0.00016616,2]
[350143395,1737651039151,-2032.92203636,0.00016616,2]
[350143397,1737651039161,-200.0,0.00016625,2]
[350143399,1737651039170,-1600.53327841,0.00016631,2]
[350143401,1737651039180,-200.0,0.00016633,2]
[350143403,1737651039189,-200.0,0.00016637,2]
[350143405,1737651039198,-1465.25380078,0.0001664,2]
[350143408,1737651039215,-135.27947763,0.0001664,2]
[350143410,1737651039225,-163.96744025,0.00016643,2]
[350143412,1737651039237,-355.35654305,0.00016643,2]
[350143414,1737651039246,-1214.2085621,0.00016678,2]
[350143416,1737651039258,-412.40818989,0.00016678,2]
[350143419,1737651039269,-887.30986376,0.00016678,2]
[350143420,1737651039279,-502.38346633,0.0001671,2]
[350143423,1737651039289,-500.0,0.0001671,2]
[350143425,1737651039299,-500.0,0.0001671,2]
[350143427,1737651039308,-500.0,0.0001671,2]
[350143429,1737651039318,-500.0,0.0001671,2]
[350143431,1737651039327,-500.0,0.0001671,2]
[350143432,1737651039337,-501.26898816,0.0001671,2]
[350143434,1737651039346,-506.17402902,0.0001671,2]
[350143436,1737651039356,-501.88786412,0.0001671,2]
[350143438,1737651039366,-500.0,0.0001671,2]
[350143440,1737651039375,-501.32955062,0.0001671,2]
[350143442,1737651039385,-500.0,0.0001671,2]
[350143444,1737651039395,-500.0,0.0001671,2]
[350143446,1737651039405,-500.5549151,0.0001671,2]
[350143448,1737651039415,-500.0,0.0001671,2]
[350143451,1737651039425,-500.80078046,0.0001671,2]
[350143453,1737651039436,-500.0,0.0001671,2]
[350143455,1737651039446,-501.48786702,0.0001671,2]
[350143456,1737651039456,-500.0,0.0001671,2]
[350143459,1737651039465,-198.80267523,0.0001671,2]
[350143461,1737651039483,-303.16074478,0.0001671,2]
[350143463,1737651039492,-339.93784203,0.0001671,2]
[350143467,1737651039513,-160.06215797,0.0001671,2]
[350143469,1737651039523,-500.0,0.0001671,2]
[350143471,1737651039532,-500.0,0.0001671,2]
[350143473,1737651039542,-500.48261642,0.0001671,2]
[350143475,1737651039553,-502.02596641,0.0001671,2]
[350143477,1737651039563,-500.0,0.0001671,2]
[350143479,1737651039572,-500.30481047,0.0001671,2]
[350143481,1737651039584,-500.0,0.0001671,2]
[350143483,1737651039593,-500.82902876,0.0001671,2]
[350143485,1737651039603,-500.0,0.0001671,2]
[350143487,1737651039612,-302.18841997,0.0001671,2]
[350143489,1737651039624,-199.11385622,0.0001671,2]
[350143491,1737651039634,-295.5129459,0.0001671,2]
[350143493,1737651039652,-204.69548854,0.0001671,2]
[350143495,1737651039662,-500.0,0.0001671,2]
[350143498,1737651039672,-503.70219429,0.0001671,2]
[350143500,1737651039682,-500.0,0.0001671,2]
[350143502,1737651039691,-500.0,0.0001671,2]
[350143503,1737651039701,-500.62312088,0.0001671,2]
[350143506,1737651039711,-262.30433062,0.0001671,2]
[350143507,1737651039720,-500.0,0.0001671,2]
[350143509,1737651039729,-500.0,0.0001671,2]
[350143511,1737651039738,-500.0,0.0001671,2]
[350143513,1737651039748,-500.0,0.0001671,2]
[350143515,1737651039763,-237.5522444,0.0001671,2]
[350143517,1737651039773,-576.43613289,0.0001671,2]
[350143520,1737651039782,-500.0,0.0001671,2]
[350143522,1737651039791,-500.0,0.0001671,2]
[350143524,1737651039801,-500.0,0.0001671,2]
[350143526,1737651039812,-500.0,0.0001671,2]
[350143528,1737651039822,-880.05,0.0001671,2]
[350143530,1737651039833,-745.91,0.0001671,2]
[350143532,1737651039843,-231.08563313,0.0001671,2]
[350143534,1737651039852,-203.45728543,0.0001671,2]
[350143536,1737651039862,-517.09,0.0001671,2]
[350143538,1737651039872,-500.0,0.0001671,2]
[350143540,1737651039881,-1421.51,0.0001671,2]
[350143542,1737651039891,-1775.54628528,0.0001671,2]
[350143544,1737651039903,-548.61371472,0.0001671,2]
[350143546,1737651039913,-500.0,0.0001671,2]
[350143548,1737651039923,-505.47479646,0.0001671,2]
[350143550,1737651039933,-1076.34954882,0.0001671,2]
[350143559,1737651040010,-66.54045118,0.0001671,2]
[350143561,1737651040020,-500.0,0.0001671,2]
[350143564,1737651040031,-14.45954882,0.0001671,2]
[350143605,1737651040331,-500.0,0.00016438,2]
[350143607,1737651040341,-500.0,0.00016438,2]
[350143608,1737651040351,-485.54045118,0.0001671,2]
[350143609,1737651040361,-500.0,0.0001671,2]
[350143610,1737651040371,-500.0,0.0001671,2]
[350143611,1737651040381,-500.0,0.0001671,2]
[350143612,1737651040390,-2063.52,0.0001671,2]
[350143613,1737651040399,-803.54,0.0001671,2]
[350143614,1737651040409,-500.0,0.0001671,2]
[350143615,1737651040418,-500.0,0.0001671,2]
[350143617,1737651040427,-500.0,0.0001671,2]
[350143619,1737651040436,-500.0,0.0001671,2]
[350143621,1737651040446,-500.0,0.0001671,2]
[350143623,1737651040455,-500.0,0.0001671,2]
[350143625,1737651040465,-500.0,0.0001671,2]
[350143627,1737651040474,-500.0,0.0001671,2]
[350143629,1737651040484,-500.0,0.0001671,2]
[350143631,1737651040493,-500.0,0.0001671,2]
[350143633,1737651040503,-500.0,0.0001671,2]
[350143634,1737651040522,-500.0,0.0001671,2]
[350143636,1737651040532,-500.0,0.0001671,2]
[350143638,1737651040541,-500.0,0.0001671,2]
[350143640,1737651040554,-500.0,0.0001671,2]
[350143642,1737651040563,-620.48,0.0001671,2]
[350143644,1737651040572,-500.97,0.0001671,2]
[350143646,1737651040581,-1094.14,0.0001671,2]
[350143648,1737651040590,-418.79381865,0.0001671,2]
[350143650,1737651040600,-2504.59,0.0001671,2]
[350143652,1737651040609,-500.0,0.0001671,2]
[350143654,1737651040619,-500.0,0.00016711,2]
[350143656,1737651040628,-500.0,0.00016711,2]
[350143658,1737651040638,-880.72,0.00016711,2]
[350143660,1737651040647,-500.0,0.00016711,2]
[350143662,1737651040657,-500.0,0.00016711,2]
[350143664,1737651040666,-566.02,0.00016711,2]
[350143666,1737651040675,-740.78,0.00016711,2]
[350143668,1737651040685,-500.0,0.00016711,2]
[350143670,1737651040694,-1000.0,0.00016711,2]
[350143672,1737651040704,-620.32,0.00016711,2]
[350143674,1737651040715,-500.0,0.00016711,2]
[350143676,1737651040724,-683.55,0.00016711,2]
[350143678,1737651040733,-754.91,0.00016711,2]
[350143680,1737651040743,-500.0,0.00016711,2]
[350143682,1737651040753,-500.0,0.00016712,2]
[350143684,1737651040774,-500.0,0.00016712,2]
[350143686,1737651040784,-500.0,0.00016712,2]
[350143688,1737651040793,-500.0,0.00016712,2]
[350143690,1737651040803,-500.0,0.00016712,2]
[350143692,1737651040812,-500.0,0.00016712,2]
[350143694,1737651040822,-500.0,0.00016712,2]
[350143696,1737651040832,-500.0,0.00016712,2]
[350143698,1737651040843,-500.0,0.00016712,2]
[350143700,1737651040852,-500.0,0.00016712,2]
[350143702,1737651040865,-500.0,0.00016712,2]
[350143704,1737651040875,-500.0,0.00016712,2]
[350143706,1737651040886,-500.0,0.00016712,2]
[350143708,1737651040895,-500.0,0.00016712,2]
[350143710,1737651040905,-500.0,0.00016712,2]
[350143712,1737651040916,-500.0,0.00016712,2]
[350143714,1737651040927,-500.0,0.00016712,2]
[350143716,1737651040937,-560.23525961,0.00016712,2]
[350143718,1737651040948,-500.0,0.00016712,2]
[350143720,1737651040957,-500.0,0.00016712,2]
[350143722,1737651040967,-500.0,0.00016712,2]
[350143724,1737651040976,-500.0,0.00016712,2]
[350143726,1737651040986,-593.61839358,0.00016712,2]
[350143728,1737651040996,-645.35106096,0.00016712,2]
[350143731,1737651041007,-500.0,0.00016712,2]
[350143733,1737651041028,-500.0,0.00016712,2]
[350143735,1737651041038,-500.0,0.00016712,2]
[350143737,1737651041048,-500.0,0.00016712,2]
[350143739,1737651041057,-500.0,0.00016712,2]
[350143741,1737651041067,-500.0,0.00016712,2]
[350143743,1737651041076,-500.0,0.00016712,2]
[350143745,1737651041086,-594.58271872,0.00016712,2]
[350143747,1737651041096,-500.0,0.00016712,2]
[350143749,1737651041106,-500.0,0.00016712,2]
[350143751,1737651041115,-163.37013092,0.00016712,2]
[350143753,1737651041125,-500.0,0.00016712,2]
[350143755,1737651041135,-236.3803771,0.00016712,2]
[350143757,1737651041144,-500.0,0.00016712,2]
[350143759,1737651041154,-500.0,0.00016712,2]
[350143761,1737651041163,-472.57022668,0.00016712,2]
[350143763,1737651041172,-244.82030447,0.00016712,2]
[350143765,1737651041188,-255.17969553,0.00016712,2]
[350143767,1737651041199,-357.62993872,0.00016712,2]
[350143777,1737651041289,-142.37006128,0.00016712,2]
[350143779,1737651041299,-468.07352953,0.00016712,2]
[350143782,1737651041310,-31.92647047,0.00016712,2]
[350143783,1737651041319,-234.59026755,0.00016712,2]
[350143785,1737651041328,-500.0,0.00016712,2]
[350143787,1737651041338,-500.0,0.00016712,2]
[350143789,1737651041347,-400.0,0.00016712,2]
[350143791,1737651041356,-500.0,0.00016712,2]
[350143793,1737651041366,-500.0,0.00016712,2]
[350143795,1737651041375,-500.0,0.00016712,2]
[350143797,1737651041385,-500.0,0.00016712,2]
[350143800,1737651041396,-500.0,0.00016712,2]
[350143802,1737651041406,-500.0,0.00016712,2]
[350143803,1737651041415,-500.0,0.00016712,2]
[350143806,1737651041425,-500.0,0.00016712,2]
[350143808,1737651041434,-281.05998906,0.00016712,2]
[350143810,1737651041446,-218.94001094,0.00016712,2]
[350143812,1737651041455,-500.0,0.00016712,2]
[350143814,1737651041464,-500.0,0.00016712,2]
[350143815,1737651041474,-500.0,0.00016712,2]
[350143817,1737651041483,-500.0,0.00016712,2]
[350143819,1737651041493,-519.7869071,0.00016712,2]
[350143821,1737651041503,-500.0,0.00016712,2]
[350143823,1737651041517,-500.0,0.00016712,2]
[350143825,1737651041528,-500.0,0.00016712,2]
[350143827,1737651041538,-500.0,0.00016712,2]
[350143829,1737651041547,-500.0,0.00016712,2]
[350143831,1737651041556,-500.0,0.00016712,2]
[350143833,1737651041566,-500.0,0.00016712,2]
[350143835,1737651041576,-500.0,0.00016712,7]
[350143837,1737651041585,-500.0,0.00016712,2]
[350143839,1737651041594,-500.0,0.00016712,2]
[350143841,1737651041603,-500.0,0.00016712,2]
[350143843,1737651041613,-500.0,0.00016712,2]
[350143845,1737651041622,-500.0,0.00016712,2]
[350143847,1737651041631,-500.0,0.00016712,2]
[350143849,1737651041640,-500.0,0.00016712,2]
[350143851,1737651041649,-275.12360135,0.00016712,2]
[350143854,1737651041662,-224.87639865,0.00016712,2]
[350143856,1737651041671,-500.0,0.00016712,2]
[350143858,1737651041681,-629.04533846,0.00016712,2]
[350143860,1737651041690,-500.0,0.00016712,2]
[350143862,1737651041700,-500.0,0.00016712,2]
[350143863,1737651041710,-500.0,0.00016712,2]
[350143865,1737651041719,-500.0,0.00016712,2]
[350143868,1737651041729,-565.20844334,0.00016712,2]
[350143870,1737651041738,-500.0,0.00016712,2]
[350143871,1737651041748,-500.0,0.00016712,2]
[350143873,1737651041760,-500.0,0.00016712,2]
[350143875,1737651041769,-78.09467755,0.00016712,2]
[350143878,1737651041781,-421.90532245,0.00016712,2]
[350143880,1737651041790,-500.0,0.00016712,2]
[350143882,1737651041800,-500.0,0.00016712,2]
[350143884,1737651041808,-500.0,0.00016712,2]
[350143886,1737651041818,-500.0,0.00016712,2]
[350143888,1737651041827,-500.0,0.00016712,2]
[350143890,1737651041839,-500.0,0.00016712,2]
[350143892,1737651041849,-500.0,0.00016712,2]
[350143894,1737651041858,-500.0,0.00016712,2]
[350143896,1737651041868,-500.0,0.00016712,2]
[350143898,1737651041877,-500.0,0.00016712,2]
[350143900,1737651041887,-500.0,0.00016712,2]
[350143902,1737651041896,-500.0,0.00016712,2]
[350143904,1737651041905,-500.0,0.00016712,2]
[350143905,1737651041914,-500.0,0.00016712,2]
[350143907,1737651041924,-500.0,0.00016712,2]
[350143923,1737651042068,-500.0,0.00016712,2]
[350143925,1737651042086,-500.0,0.00016712,2]
[350143927,1737651042097,-500.0,0.00016712,2]
[350143929,1737651042106,-500.0,0.00016712,2]
[350143931,1737651042115,-500.0,0.00016712,2]
[350143933,1737651042124,-500.0,0.00016712,2]
[350143935,1737651042133,-500.0,0.00016712,2]
[350143937,1737651042142,-500.0,0.00016712,2]
[350143939,1737651042153,-500.0,0.00016712,2]
[350143941,1737651042162,-500.0,0.00016712,2]
[350143943,1737651042171,-500.0,0.00016712,2]
[350143945,1737651042180,-500.0,0.00016712,2]
[350143947,1737651042189,-500.0,0.00016712,2]
[350143949,1737651042198,-406.16203994,0.00016712,2]
[350143961,1737651042376,-222.63429774,0.0001353,2]
[350143963,1737651042386,-510.67062031,0.00016438,2]
[350143965,1737651042395,-93.83796006,0.00016712,2]
[350143967,1737651042404,-500.0,0.00016712,2]
[350143969,1737651042413,-500.0,0.00016712,2]
[350143971,1737651042422,-500.0,0.00016712,2]
[350143973,1737651042432,-500.0,0.00016712,2]
[350143975,1737651042440,-500.0,0.00016712,2]
[350143977,1737651042450,-500.0,0.00016712,2]
[350143979,1737651042459,-500.0,0.00016712,2]
[350143980,1737651042468,-500.0,0.00016712,2]
[350143982,1737651042478,-500.0,0.00016712,2]
[350143984,1737651042488,-500.0,0.00016712,2]
[350143987,1737651042498,-500.0,0.00016712,2]
[350143989,1737651042509,-500.0,0.00016712,2]
[350143991,1737651042519,-500.0,0.00016712,2]
[350143993,1737651042529,-500.0,0.00016712,2]
[350143995,1737651042541,-500.0,0.00016712,2]
[350143997,1737651042553,-500.0,0.00016712,2]
[350143998,1737651042562,-344.57176841,0.00016712,2]
[350144001,1737651042572,-500.0,0.00016712,2]
[350144003,1737651042581,-500.0,0.00016712,2]
[350144004,1737651042591,-438.88535348,0.00016712,2]
[350144007,1737651042604,-61.11464652,0.00016712,2]
[350144009,1737651042613,-500.0,0.00016712,2]
[350144011,1737651042622,-441.94709348,0.00016712,2]
[350144013,1737651042633,-58.05290652,0.00016712,2]
[350144015,1737651042642,-500.0,0.00016712,2]
[350144017,1737651042652,-500.0,0.00016712,2]
[350144019,1737651042661,-500.0,0.00016712,2]
[350144021,1737651042670,-500.0,0.00016712,2]
[350144023,1737651042679,-500.0,0.00016712,2]
[350144025,1737651042688,-500.0,0.00016712,2]
[350144027,1737651042698,-500.0,0.00016712,2]
[350144029,1737651042708,-500.0,0.00016712,2]
[350144031,1737651042719,-500.0,0.00016712,2]
[350144033,1737651042728,-500.0,0.00016712,2]
[350144035,1737651042738,-500.0,0.00016712,2]
[350144037,1737651042749,-500.0,0.00016712,2]
[350144039,1737651042760,-500.0,0.00016712,2]
[350144041,1737651042769,-500.0,0.00016712,2]
[350144043,1737651042779,-500.0,0.00016712,2]
[350144045,1737651042788,-500.0,0.00016712,2]
[350144047,1737651042797,-500.0,0.00016712,2]
[350144049,1737651042807,-500.0,0.00016712,2]
[350144051,1737651042816,-500.0,0.00016712,2]
[350144053,1737651042825,-500.0,0.00016712,2]
[350144055,1737651042836,-500.0,0.00016712,2]
[350144057,1737651042845,-500.0,0.00016712,2]
[350144059,1737651042855,-500.0,0.00016712,2]
[350144061,1737651042867,-500.0,0.00016712,2]
[350144063,1737651042876,-500.0,0.00016712,2]
[350144065,1737651042885,-500.0,0.00016712,2]
[350144067,1737651042894,-500.0,0.00016712,2]
[350144069,1737651042905,-500.0,0.00016712,2]
[350144071,1737651042914,-500.0,0.00016712,2]
[350144073,1737651042924,-500.0,0.00016712,2]
[350144075,1737651042933,-500.0,0.00016712,2]
[350144077,1737651042944,-500.0,0.00016712,2]
[350144079,1737651042953,-500.0,0.00016712,2]
[350144081,1737651042962,-500.0,0.00016712,2]
[350144083,1737651042971,-500.0,0.00016712,2]
[350144086,1737651042981,-500.0,0.00016712,2]
[350144089,1737651042990,-500.0,0.00016712,2]
[350144091,1737651043001,-500.0,0.00016712,2]
[350144094,1737651043011,-500.0,0.00016712,2]
[350144097,1737651043020,-500.0,0.00016712,2]
[350144100,1737651043030,-500.0,0.00016712,2]
[350144102,1737651043039,-500.0,0.00016712,2]
[350144103,1737651043048,-500.0,0.00016712,2]
[350144105,1737651043058,-500.0,0.00016712,2]
[350144107,1737651043067,-500.0,0.00016712,2]
[350144109,1737651043076,-500.0,0.00016712,2]
[350144113,1737651043086,-500.0,0.00016712,2]
[350144116,1737651043095,-500.0,0.00016712,2]
[350144117,1737651043104,-500.0,0.00016712,2]
[350144119,1737651043114,-309.55830001,0.00016712,2]
[350144121,1737651043123,-564.41581399,0.00016712,2]
[350144124,1737651043135,-500.0,0.00016712,2]
[350144126,1737651043145,-500.0,0.00016712,2]
[350144128,1737651043154,-517.5939595,0.00016712,2]
[350144130,1737651043163,-330.53953458,0.00016712,2]
[350144132,1737651043173,-500.0,0.00016712,2]
[350144134,1737651043182,-500.0,0.00016712,2]
[350144136,1737651043191,-500.0,0.00016712,2]
[350144138,1737651043200,-500.0,0.00016712,2]
[350144140,1737651043209,-500.0,0.00016712,2]
[350144142,1737651043219,-273.43729892,0.00016712,2]
[350144145,1737651043229,-500.0,0.00016712,2]
[350144147,1737651043238,-500.0,0.00016712,2]
[350144149,1737651043247,-500.0,0.00016712,2]
[350144150,1737651043256,-500.0,0.00016712,2]
[350144153,1737651043268,-500.0,0.00016712,2]
[350144155,1737651043278,-500.0,0.00016712,2]
[350144157,1737651043288,-500.0,0.00016712,2]
[350144158,1737651043297,-500.0,0.00016712,2]
[350144161,1737651043306,-500.0,0.00016712,2]
[350144163,1737651043315,-500.0,0.00016712,2]
[350144165,1737651043326,-490.0,0.00016712,2]
[350144167,1737651043335,-500.0,0.00016712,2]
[350144169,1737651043344,-500.0,0.00016712,2]
[350144171,1737651043353,-500.0,0.00016712,2]
[350144173,1737651043362,-500.0,0.00016712,2]
[350144175,1737651043371,-500.0,0.00016712,2]
[350144177,1737651043380,-500.0,0.00016712,2]
[350144178,1737651043390,-500.0,0.00016712,2]
[350144180,1737651043399,-500.0,0.00016712,2]
[350144182,1737651043408,-500.0,0.00016712,2]
[350144185,1737651043424,-500.0,0.00016712,2]
[350144186,1737651043435,-500.0,0.00016712,2]
[350144188,1737651043445,-500.0,0.00016712,2]
[350144190,1737651043455,-500.0,0.00016712,2]
[350144193,1737651043464,-500.0,0.00016712,2]
[350144194,1737651043474,-540.88606112,0.00016712,2]
[350144196,1737651043483,-500.0,0.00016712,2]
[350144199,1737651043493,-500.0,0.00016712,2]
[350144201,1737651043502,-500.0,0.00016712,2]
[350144203,1737651043513,-486.41269759,0.00016712,2]
[350144205,1737651043522,-500.0,0.00016712,2]
[350144207,1737651043532,-500.0,0.00016712,2]
[350144209,1737651043542,-500.0,0.00016712,2]
[350144210,1737651043551,-500.0,0.00016712,2]
[350144211,1737651043560,-159.40303725,0.00016712,2]
[350144212,1737651043571,-500.0,0.00016712,2]
[350144213,1737651043580,-500.0,0.00016712,2]
[350144214,1737651043590,-500.0,0.00016712,2]
[350144215,1737651043599,-500.0,0.00016712,2]
[350144216,1737651043610,-382.793294,0.00016712,2]
[350144217,1737651043620,-241.56080543,0.00016712,2]
[350144218,1737651043629,-500.0,0.00016712,2]
[350144219,1737651043640,-500.0,0.00016712,2]
[350144220,1737651043649,-500.0,0.00016712,2]
[350144221,1737651043659,-500.0,0.00016712,2]
[350144222,1737651043668,-500.0,0.00016712,2]
[350144223,1737651043678,-500.0,0.00016712,2]
[350144224,1737651043687,-500.0,0.00016712,2]
[350144225,1737651043698,-500.0,0.00016712,2]
[350144226,1737651043707,-145.34629109,0.00016712,2]
[350144227,1737651043726,-354.65370891,0.00016712,2]
[350144228,1737651043735,-538.5,0.00016712,2]
[350144229,1737651043745,-170.74509109,0.00016712,2]
[350144232,1737651043761,-329.25490891,0.00016712,2]
[350144233,1737651043770,-500.0,0.00016712,2]
[350144234,1737651043779,-223.40143929,0.00016712,2]
[350144235,1737651043910,-67.90329771,0.00016712,2]
[350144236,1737651043920,-500.0,0.00016712,2]
[350144237,1737651043929,-500.0,0.00016712,2]
[350144238,1737651043939,-813.03,0.00016712,2]
[350144239,1737651043949,-500.0,0.00016712,2]
[350144240,1737651043958,-500.0,0.00016712,2]
[350144241,1737651043968,-500.0,0.00016712,2]
[350144242,1737651043978,-500.0,0.00016712,2]
[350144243,1737651043988,-138.85360939,0.00016712,2]
[350144489,1737651046947,-222.63429773,0.00014215,2]
[350144491,1737651046958,-291.77370227,0.00016438,2]
[350144506,1737651047106,-208.22629773,0.00016438,2]
[350144508,1737651047116,-251.25641,0.00016438,2]
[350144510,1737651047126,-500.0,0.00016438,2]
[350144512,1737651047135,-500.0,0.00016438,2]
[350144514,1737651047144,-500.0,0.00016438,2]
[350144516,1737651047153,-500.0,0.00016438,2]
[350144518,1737651047164,-61.14639061,0.00016712,2]
[350144520,1737651047174,-500.0,0.00016712,2]
[350144522,1737651047183,-500.0,0.00016712,2]
[350144524,1737651047192,-500.0,0.00016712,2]
[350144526,1737651047201,-500.0,0.00016712,2]
[350144528,1737651047211,-500.0,0.00016712,2]
[350144530,1737651047219,-500.0,0.00016712,2]
[350144532,1737651047229,-500.0,0.00016712,2]
[350144534,1737651047239,-500.0,0.00016712,2]
[350144536,1737651047248,-500.0,0.00016712,2]
[350144538,1737651047258,-500.0,0.00016712,2]
[350144540,1737651047271,-500.0,0.00016712,2]
[350144542,1737651047281,-500.0,0.00016712,2]
[350144544,1737651047291,-500.0,0.00016712,2]
[350144546,1737651047301,-500.0,0.00016712,2]
[350144549,1737651047311,-500.0,0.00016712,2]
[350144550,1737651047321,-500.0,0.00016712,2]
[350144552,1737651047330,-500.0,0.00016712,2]
[350144555,1737651047340,-608.19,0.00016712,2]
[350144556,1737651047350,-203.23439036,0.00016712,2]
[350144558,1737651047359,-525.35834672,0.00016712,2]
[350144560,1737651047369,-500.0,0.00016712,2]
[350144562,1737651047379,-1563.45,0.00016712,2]
[350144565,1737651047390,-5.60686941,0.00016712,2]
[350144568,1737651047406,-494.39313059,0.00016712,2]
[350144571,1737651047416,-6.94329886,0.00016712,2]
[350144945,1737651074626,419.44,0.000219,31]
[350144946,1737651074678,419.44,0.000219,31]
[350144947,1737651074725,419.44,0.000219,31]
[350144948,1737651074785,419.44,0.000219,31]
[350144949,1737651074841,419.44,0.000219,31]
[350144950,1737651074901,419.44,0.000219,31]
[350144951,1737651074959,419.44,0.000219,31]
[350144952,1737651075017,419.44,0.000219,31]
[350144953,1737651075079,419.44,0.000219,31]
[350144954,1737651075144,419.44,0.000219,31]
[350144955,1737651075213,419.44,0.000219,31]